fUSD/lending_fUSD_20260516
["ID","MTS","AMOUNT","RATE_DAILY","PERIOD"]
[422397445,1778935838000,-107000.7582551,0.00014038,2]
[422397446,1778935838000,-13295.8743427,0.00014038,2]
[422397458,1778935838000,-151.0,0.00014038,2]
[422397457,1778935838000,-198.911634,0.00014038,2]
[422397465,1778935838000,-1158.867927,0.00014038,2]
[422397454,1778935838000,-198.911634,0.00014038,2]
[422397456,1778935838000,-198.911634,0.00014038,2]
[422397459,1778935838000,-151.0,0.00014038,2]
[422397455,1778935838000,-198.911634,0.00014038,2]
[422397462,1778935838000,-1158.867927,0.00014038,2]
[422397402,1778935838000,-500.0,0.00013879,2]
[422397460,1778935838000,-151.0,0.00014038,2]
[422397461,1778935838000,-151.0,0.00014038,2]
[422397463,1778935838000,-1158.867927,0.00014038,2]
[422397436,1778935838000,-150.0,0.00014037,2]
[422397437,1778935838000,-500.0,0.00014037,2]
[422397464,1778935838000,-1158.867927,0.00014038,2]
[422397430,1778935838000,-500.0,0.00014037,2]
[422397409,1778935838000,-15208.20318569,0.00013937,2]
[422397435,1778935838000,-500.0,0.00014037,2]
[422397405,1778935838000,-150.0,0.00013896,2]
[422397408,1778935838000,-150.0,0.00013907,2]
[422397407,1778935838000,-4800.0,0.000139,5]
[422397404,1778935838000,-150.0,0.00013896,2]
[422397406,1778935838000,-150.0,0.00013896,2]
[422397413,1778935838000,-5000.0,0.00013938,2]
[422397412,1778935838000,-668.24897212,0.00013938,2]
[422397411,1778935838000,-1498.88064894,0.00013938,2]
[422397415,1778935838000,-166.66,0.00013973,2]
[422397426,1778935838000,-151.0,0.00014035,2]
[422397414,1778935838000,-150.0,0.00013967,2]
[422397425,1778935838000,-151.0,0.00014035,2]
[422397403,1778935838000,-500.0,0.0001389,2]
[422397421,1778935838000,-198.43237319,0.00014028,2]
[422397427,1778935838000,-500.0,0.00014036,2]
[422397431,1778935838000,-500.0,0.00014037,2]
[422397434,1778935838000,-621.13564933,0.00014037,2]
[422397433,1778935838000,-500.0,0.00014037,2]
[422397428,1778935838000,-500.0,0.00014037,2]
[422397416,1778935838000,-2609.27438632,0.0001399,2]
[422397432,1778935838000,-500.0,0.00014037,2]
[422397417,1778935838000,-150.0,0.00013997,2]
[422397420,1778935838000,-150.0,0.00014027,2]
[422397422,1778935838000,-150.0,0.00014033,2]
[422397418,1778935838000,-2000.0,0.00014005,2]
[422397419,1778935838000,-4479.5507609,0.00014007,2]
[422397423,1778935838000,-150.0,0.00014033,2]
[422397508,1778935839000,-500.0,0.00014039,2]
[422397507,1778935839000,-500.0,0.00014039,2]
[422397503,1778935839000,-162.72485431,0.00014039,2]
[422397500,1778935839000,-500.0,0.00014039,2]
[422397497,1778935839000,-308.72335829,0.00014039,2]
[422397495,1778935839000,-271.01458838,0.00014039,2]
[422397494,1778935839000,-500.0,0.00014039,2]
[422397501,1778935839000,-500.0,0.00014039,2]
[422397498,1778935839000,-500.0,0.00014039,2]
[422397499,1778935839000,-500.0,0.00014039,2]
[422397504,1778935839000,-500.0,0.00014039,2]
[422397513,1778935839000,-500.0,0.00014039,2]
[422397505,1778935839000,-500.0,0.00014039,2]
[422397514,1778935839000,-500.0,0.00014039,2]
[422397515,1778935839000,-500.0,0.00014039,2]
[422397512,1778935839000,-500.0,0.00014039,2]
[422397510,1778935839000,-500.0,0.00014039,2]
[422397509,1778935839000,-500.0,0.00014039,2]
[422397511,1778935839000,-500.0,0.00014039,2]
[422397517,1778935839000,-500.0,0.00014039,2]
[422397518,1778935839000,-500.0,0.00014039,2]
[422397516,1778935839000,-500.0,0.00014039,2]
[422397496,1778935839000,-500.0,0.00014039,2]
[422397519,1778935839000,-500.0,0.00014039,2]
[422397506,1778935839000,-500.0,0.00014039,2]
[422397502,1778935839000,-633.74463675,0.00014039,2]
[422397480,1778935839000,-1763.02757,0.00014038,2]
[422397493,1778935839000,-2082.01435369,0.00014038,2]
[422397520,1778935839000,-500.0,0.00014039,2]
[422397467,1778935839000,-195.921761,0.00014038,2]
[422397477,1778935839000,-151.0,0.00014038,2]
[422397466,1778935839000,-151.0,0.00014038,2]
[422397468,1778935839000,-361.895303,0.00014038,2]
[422397471,1778935839000,-361.895303,0.00014038,2]
[422397470,1778935839000,-151.0,0.00014038,2]
[422397474,1778935839000,-177.895226,0.00014038,2]
[422397469,1778935839000,-361.895303,0.00014038,2]
[422397475,1778935839000,-151.0,0.00014038,2]
[422397472,1778935839000,-151.0,0.00014038,2]
[422397476,1778935839000,-151.0,0.00014038,2]
[422397492,1778935839000,-151.0,0.00014038,2]
[422397473,1778935839000,-361.895303,0.00014038,2]
[422397479,1778935839000,-1763.02757,0.00014038,2]
[422397487,1778935839000,-222.380445,0.00014038,2]
[422397482,1778935839000,-1763.02757,0.00014038,2]
[422397490,1778935839000,-222.380445,0.00014038,2]
[422397483,1778935839000,-151.0,0.00014038,2]
[422397481,1778935839000,-1763.02757,0.00014038,2]
[422397489,1778935839000,-222.380445,0.00014038,2]
[422397488,1778935839000,-151.0,0.00014038,2]
[422397484,1778935839000,-151.0,0.00014038,2]
[422397486,1778935839000,-151.0,0.00014038,2]
[422397485,1778935839000,-151.0,0.00014038,2]
[422397491,1778935839000,-222.380445,0.00014038,2]
[422397478,1778935839000,-151.0,0.00014038,2]
[422397531,1778935839000,-500.0,0.00014039,2]
[422397551,1778935839000,-881.34783267,0.00014039,2]
[422397522,1778935839000,-500.0,0.00014039,2]
[422397548,1778935839000,-881.34783267,0.00014039,2]
[422397550,1778935839000,-881.34783267,0.00014039,2]
[422397558,1778935839000,-881.34783267,0.00014039,2]
[422397560,1778935839000,-881.34783267,0.00014039,2]
[422397569,1778935839000,-881.34783267,0.00014039,2]
[422397562,1778935839000,-881.34783267,0.00014039,2]
[422397561,1778935839000,-881.34783267,0.00014039,2]
[422397571,1778935839000,-881.34783267,0.00014039,2]
[422397563,1778935839000,-881.34783267,0.00014039,2]
[422397566,1778935839000,-881.34783267,0.00014039,2]
[422397565,1778935839000,-881.34783267,0.00014039,2]
[422397568,1778935839000,-881.34783267,0.00014039,2]
[422397564,1778935839000,-881.34783267,0.00014039,2]
[422397573,1778935839000,-881.34783267,0.00014039,2]
[422397572,1778935839000,-881.34783267,0.00014039,2]
[422397576,1778935839000,-881.34783267,0.00014039,2]
[422397575,1778935839000,-881.34783267,0.00014039,2]
[422397574,1778935839000,-881.34783267,0.00014039,2]
[422397578,1778935839000,-175.72075919,0.00014039,2]
[422397582,1778935839000,-842.78886498,0.00014039,2]
[422397579,1778935839000,-500.0,0.00014039,2]
[422397577,1778935839000,-223.53752897,0.00014039,2]
[422397580,1778935839000,-271.30505842,0.00014039,2]
[422397581,1778935839000,-842.78886498,0.00014039,2]
[422397521,1778935839000,-500.0,0.00014039,2]
[422397554,1778935839000,-881.34783267,0.00014039,2]
[422397557,1778935839000,-881.34783267,0.00014039,2]
[422397559,1778935839000,-881.34783267,0.00014039,2]
[422397553,1778935839000,-881.34783267,0.00014039,2]
[422397526,1778935839000,-500.0,0.00014039,2]
[422397552,1778935839000,-881.34783267,0.00014039,2]
[422397529,1778935839000,-500.0,0.00014039,2]
[422397523,1778935839000,-500.0,0.00014039,2]
[422397524,1778935839000,-500.0,0.00014039,2]
[422397528,1778935839000,-500.0,0.00014039,2]
[422397525,1778935839000,-500.0,0.00014039,2]
[422397530,1778935839000,-631.42544945,0.00014039,2]
[422397533,1778935839000,-500.0,0.00014039,2]
[422397532,1778935839000,-500.0,0.00014039,2]
[422397539,1778935839000,-881.34783267,0.00014039,2]
[422397543,1778935839000,-881.34783267,0.00014039,2]
[422397536,1778935839000,-500.0,0.00014039,2]
[422397527,1778935839000,-500.0,0.00014039,2]
[422397549,1778935839000,-881.34783267,0.00014039,2]
[422397556,1778935839000,-881.34783267,0.00014039,2]
[422397545,1778935839000,-881.34783267,0.00014039,2]
[422397546,1778935839000,-881.34783267,0.00014039,2]
[422397555,1778935839000,-881.34783267,0.00014039,2]
[422397547,1778935839000,-881.34783267,0.00014039,2]
[422397535,1778935839000,-500.0,0.00014039,2]
[422397534,1778935839000,-500.0,0.00014039,2]
[422397544,1778935839000,-881.34783267,0.00014039,2]
[422397537,1778935839000,-881.34783267,0.00014039,2]
[422397538,1778935839000,-881.34783267,0.00014039,2]
[422397541,1778935839000,-881.34783267,0.00014039,2]
[422397542,1778935839000,-881.34783267,0.00014039,2]
[422397620,1778935840000,-500.0,0.00014249,2]
[422397628,1778935840000,-150.0,0.00014267,2]
[422397622,1778935840000,-1582.625274,0.0001425,2]
[422397624,1778935840000,-141095.8083048,0.0001425,2]
[422397631,1778935840000,-150.0,0.00014297,2]
[422397610,1778935840000,-150.0,0.00014169,2]
[422397616,1778935840000,-166.66,0.00014247,2]
[422397617,1778935840000,-500.0,0.00014249,2]
[422397615,1778935840000,-612.56382853,0.00014246,2]
[422397618,1778935840000,-500.0,0.00014249,2]
[422397625,1778935840000,-160.43361236,0.00014255,2]
[422397621,1778935840000,-500.0,0.00014249,2]
[422397623,1778935840000,-2345.73237,0.0001425,2]
[422397633,1778935840000,-150.0,0.00014305,2]
[422397626,1778935840000,-192.52033483,0.00014255,2]
[422397629,1778935840000,-7896.31332919,0.00014272,2]
[422397630,1778935840000,-152.0,0.00014293,2]
[422397632,1778935840000,-150.0,0.00014305,2]
[422397635,1778935840000,-500.0,0.0001431,2]
[422397637,1778935840000,-150.0,0.00014327,2]
[422397636,1778935840000,-523.0,0.00014319,5]
[422397634,1778935840000,-150.0,0.00014305,2]
[422397638,1778935840000,-150.0,0.00014357,2]
[422397641,1778935840000,-15208.20318562,0.00014365,2]
[422397639,1778935840000,-2312.0,0.0001436,2]
[422397611,1778935840000,-167.06305135,0.00014172,2]
[422397627,1778935840000,-15208.20318562,0.00014258,2]
[422397614,1778935840000,-150.0,0.00014237,2]
[422397584,1778935840000,-842.78886498,0.00014039,2]
[422397613,1778935840000,-150.0,0.00014207,2]
[422397583,1778935840000,-842.78886498,0.00014039,2]
[422397585,1778935840000,-842.78886498,0.00014039,2]
[422397593,1778935840000,-842.78886498,0.00014039,2]
[422397589,1778935840000,-842.78886498,0.00014039,2]
[422397592,1778935840000,-842.78886498,0.00014039,2]
[422397588,1778935840000,-842.78886498,0.00014039,2]
[422397587,1778935840000,-842.78886498,0.00014039,2]
[422397594,1778935840000,-842.78886498,0.00014039,2]
[422397590,1778935840000,-842.78886498,0.00014039,2]
[422397595,1778935840000,-842.78886498,0.00014039,2]
[422397591,1778935840000,-842.78886498,0.00014039,2]
[422397596,1778935840000,-842.78886498,0.00014039,2]
[422397586,1778935840000,-842.78886498,0.00014039,2]
[422397598,1778935840000,-15208.20318562,0.00014044,2]
[422397597,1778935840000,-1462.0,0.0001404,2]
[422397602,1778935840000,-150.0,0.00014087,2]
[422397601,1778935840000,-166.14,0.00014069,2]
[422397603,1778935840000,-166.66,0.0001411,2]
[422397600,1778935840000,-7896.31332919,0.00014063,2]
[422397599,1778935840000,-150.0,0.00014057,2]
[422397605,1778935840000,-150.0,0.00014117,2]
[422397606,1778935840000,-150.0,0.00014147,2]
[422397604,1778935840000,-24495.87741852,0.0001411,2]
[422397607,1778935840000,-15208.20318562,0.00014151,2]
[422397608,1778935840000,-150.0,0.00014169,2]
[422397609,1778935840000,-150.0,0.00014169,2]
[422397619,1778935840000,-500.0,0.00014249,2]
[422397612,1778935840000,-150.0,0.00014177,2]
[422397643,1778935840000,-166.66,0.00014384,2]
[422397640,1778935840000,-2312.0,0.0001436,2]
[422397644,1778935840000,-150.0,0.00014387,2]
[422397695,1778935840000,-1540.0,0.00014479,2]
[422397697,1778935840000,-151.0,0.00014479,2]
[422397708,1778935840000,-1540.0,0.00014479,2]
[422397710,1778935840000,-1684.50576064,0.00014479,2]
[422397714,1778935840000,-1540.0,0.00014479,2]
[422397712,1778935840000,-1540.0,0.00014479,2]
[422397716,1778935840000,-1540.0,0.00014479,2]
[422397729,1778935840000,-361.895303,0.00014481,2]
[422397727,1778935840000,-361.895303,0.00014481,2]
[422397731,1778935840000,-151.0,0.00014481,2]
[422397723,1778935840000,-1540.0,0.00014479,2]
[422397721,1778935840000,-1540.0,0.00014479,2]
[422397733,1778935840000,-361.895303,0.00014481,2]
[422397718,1778935840000,-1540.0,0.00014479,2]
[422397725,1778935840000,-1540.0,0.00014479,2]
[422397740,1778935840000,-151.0,0.00014481,2]
[422397736,1778935840000,-151.0,0.00014481,2]
[422397738,1778935840000,-361.895303,0.00014481,2]
[422397742,1778935840000,-151.0,0.00014481,2]
[422397753,1778935840000,-1763.02757,0.00014481,2]
[422397755,1778935840000,-1763.02757,0.00014481,2]
[422397759,1778935840000,-151.0,0.00014481,2]
[422397747,1778935840000,-151.0,0.00014481,2]
[422397751,1778935840000,-1763.02757,0.00014481,2]
[422397749,1778935840000,-1763.02757,0.00014481,2]
[422397744,1778935840000,-151.0,0.00014481,2]
[422397642,1778935840000,-433.0,0.00014369,2]
[422397693,1778935840000,-1540.0,0.00014479,2]
[422397691,1778935840000,-202.35313272,0.00014479,2]
[422397757,1778935840000,-151.0,0.00014481,2]
[422397706,1778935840000,-1540.0,0.00014479,2]
[422397701,1778935840000,-1540.0,0.00014479,2]
[422397657,1778935840000,-150.0,0.00014447,2]
[422397655,1778935840000,-150.0,0.00014441,2]
[422397645,1778935840000,-1489.58,0.000144,2]
[422397659,1778935840000,-15208.20318562,0.00014472,2]
[422397651,1778935840000,-350.0,0.00014422,2]
[422397653,1778935840000,-150.0,0.00014441,2]
[422397647,1778935840000,-298.15,0.000144,2]
[422397650,1778935840000,-500.0,0.00014421,2]
[422397648,1778935840000,-150.0,0.00014417,2]
[422397652,1778935840000,-150.0,0.00014441,2]
[422397649,1778935840000,-668.24897212,0.00014419,2]
[422397664,1778935840000,-222.380445,0.00014472,2]
[422397676,1778935840000,-473.04234815,0.00014474,2]
[422397646,1778935840000,-738.07,0.000144,2]
[422397666,1778935840000,-222.380445,0.00014472,2]
[422397703,1778935840000,-1540.0,0.00014479,2]
[422397699,1778935840000,-156.56359846,0.00014479,2]
[422397688,1778935840000,-1540.0,0.00014479,2]
[422397686,1778935840000,-151.0,0.00014479,2]
[422397674,1778935840000,-394.20195679,0.00014474,2]
[422397682,1778935840000,-1540.0,0.00014479,2]
[422397684,1778935840000,-1540.0,0.00014479,2]
[422397662,1778935840000,-151.0,0.00014472,2]
[422397680,1778935840000,-1540.0,0.00014479,2]
[422397678,1778935840000,-150.0,0.00014477,2]
[422397672,1778935840000,-151.0,0.00014472,2]
[422397668,1778935840000,-222.380445,0.00014472,2]
[422397670,1778935840000,-222.380445,0.00014472,2]
[422397808,1778935841000,-2312.0,0.0001468,2]
[422397815,1778935841000,-152.0,0.00014698,7]
[422397807,1778935841000,-170.0,0.0001468,2]
[422397806,1778935841000,-509.0,0.0001468,5]
[422397799,1778935841000,-152.0,0.00014634,7]
[422397805,1778935841000,-350.0,0.00014679,2]
[422397804,1778935841000,-152.0,0.00014668,7]
[422397802,1778935841000,-500.0,0.00014657,2]
[422397800,1778935841000,-152.0,0.00014634,7]
[422397801,1778935841000,-150.0,0.00014657,2]
[422397803,1778935841000,-200.0,0.00014657,2]
[422397809,1778935841000,-163.0,0.0001468,2]
[422397814,1778935841000,-500.0,0.00014695,2]
[422397817,1778935841000,-198.911634,0.000147,2]
[422397812,1778935841000,-150.0,0.00014687,2]
[422397813,1778935841000,-7896.31332919,0.00014691,2]
[422397811,1778935841000,-151.0,0.00014686,2]
[422397816,1778935841000,-152.0,0.00014698,7]
[422397820,1778935841000,-198.911634,0.000147,2]
[422397826,1778935841000,-150.0,0.00014714,2]
[422397829,1778935841000,-500.0,0.00014731,2]
[422397821,1778935841000,-8000.0,0.000147,5]
[422397823,1778935841000,-500.0,0.00014702,2]
[422397824,1778935841000,-5000.01,0.00014703,2]
[422397827,1778935841000,-150.0,0.00014714,2]
[422397797,1778935841000,-6111.0,0.00014627,2]
[422397810,1778935841000,-15208.20318562,0.00014686,2]
[422397798,1778935841000,-350.0,0.00014631,2]
[422397782,1778935841000,-171.041,0.00014574,2]
[422397796,1778935841000,-150.0,0.00014627,2]
[422397762,1778935841000,-151.0,0.00014481,2]
[422397764,1778935841000,-7896.31332919,0.00014481,2]
[422397761,1778935841000,-151.0,0.00014481,2]
[422397766,1778935841000,-225.01,0.00014495,2]
[422397777,1778935841000,-500.0,0.00014566,2]
[422397781,1778935841000,-1728.53,0.00014574,2]
[422397822,1778935841000,-4041.3636814,0.000147,2]
[422397779,1778935841000,-150.0,0.00014567,2]
[422397768,1778935841000,-973.43,0.00014497,2]
[422397772,1778935841000,-500.0,0.00014508,2]
[422397770,1778935841000,-150.0,0.00014507,2]
[422397774,1778935841000,-150.0,0.00014537,2]
[422397776,1778935841000,-500.0,0.00014566,2]
[422397773,1778935841000,-3850.8168347,0.00014536,2]
[422397775,1778935841000,-500.0,0.00014566,2]
[422397784,1778935841000,-150.0,0.00014578,2]
[422397787,1778935841000,-15208.20318562,0.00014579,2]
[422397786,1778935841000,-150.0,0.00014578,2]
[422397785,1778935841000,-150.0,0.00014578,2]
[422397790,1778935841000,-150.0,0.00014597,2]
[422397794,1778935841000,-152.0,0.00014605,7]
[422397791,1778935841000,-6400.0,0.000146,5]
[422397793,1778935841000,-5000.01,0.00014604,2]
[422397783,1778935841000,-152.0,0.00014576,7]
[422397789,1778935841000,-15000.0,0.00014591,2]
[422397792,1778935841000,-461.45,0.00014602,2]
[422397788,1778935841000,-500.0,0.00014582,2]
[422397795,1778935841000,-5000.01,0.0001462,2]
[422397819,1778935841000,-198.911634,0.000147,2]
[422397778,1778935841000,-500.0,0.00014566,2]
[422397825,1778935841000,-150.0,0.00014714,2]
[422397862,1778935841000,-1708.8276,0.0001485,2]
[422397855,1778935841000,-151.0,0.0001485,2]
[422397858,1778935841000,-1158.867927,0.0001485,2]
[422397865,1778935841000,-150.0,0.0001485,2]
[422397863,1778935841000,-1708.82761,0.0001485,2]
[422397866,1778935841000,-150.0,0.0001485,2]
[422397868,1778935841000,-150.0,0.00014866,2]
[422397870,1778935841000,-200.0,0.00014879,2]
[422397869,1778935841000,-500.0,0.00014879,2]
[422397878,1778935841000,-1600.0,0.000149,5]
[422397867,1778935841000,-150.0,0.0001485,2]
[422397871,1778935841000,-150.0,0.00014896,2]
[422397872,1778935841000,-500.0,0.00014899,2]
[422397873,1778935841000,-500.0,0.00014899,2]
[422397874,1778935841000,-500.0,0.00014899,2]
[422397875,1778935841000,-197.91555615,0.000149,2]
[422397877,1778935841000,-15208.20318562,0.000149,2]
[422397876,1778935841000,-53586.41665203,0.000149,2]
[422397879,1778935841000,-7896.31332919,0.000149,2]
[422397881,1778935841000,-668.24897212,0.000149,2]
[422397883,1778935841000,-210.05692268,0.000149,2]
[422397882,1778935841000,-3400.65204069,0.000149,2]
[422397884,1778935841000,-150.0,0.00014926,2]
[422397880,1778935841000,-299.30229324,0.000149,2]
[422397885,1778935841000,-150.0,0.00014956,2]
[422397886,1778935841000,-150.0,0.00014959,2]
[422397818,1778935841000,-198.911634,0.000147,2]
[422397861,1778935841000,-1158.867927,0.0001485,2]
[422397864,1778935841000,-1708.82761,0.0001485,2]
[422397780,1778935841000,-15000.0,0.00014574,2]
[422397859,1778935841000,-1158.867927,0.0001485,2]
[422397860,1778935841000,-1158.867927,0.0001485,2]
[422397830,1778935841000,-350.0,0.00014733,2]
[422397831,1778935841000,-385.0,0.0001474,2]
[422397833,1778935841000,-5000.01,0.00014764,2]
[422397836,1778935841000,-1354.0,0.00014785,2]
[422397832,1778935841000,-150.0,0.00014747,2]
[422397835,1778935841000,-756.128,0.00014785,2]
[422397828,1778935841000,-150.0,0.00014717,2]
[422397834,1778935841000,-150.0,0.00014776,2]
[422397840,1778935841000,-150.0,0.00014785,2]
[422397837,1778935841000,-926.0,0.00014785,2]
[422397838,1778935841000,-1223.0,0.00014785,2]
[422397839,1778935841000,-284.625,0.00014785,2]
[422397850,1778935841000,-150.0,0.00014836,2]
[422397841,1778935841000,-15208.20318562,0.00014793,2]
[422397851,1778935841000,-3788.32130728,0.00014843,2]
[422397852,1778935841000,-529.0,0.0001485,5]
[422397854,1778935841000,-151.0,0.0001485,2]
[422397856,1778935841000,-151.0,0.0001485,2]
[422397849,1778935841000,-350.0,0.0001483,2]
[422397848,1778935841000,-238.6149222,0.00014825,2]
[422397842,1778935841000,-1600.0,0.000148,5]
[422397857,1778935841000,-195.596786,0.0001485,2]
[422397843,1778935841000,-350.0,0.00014804,2]
[422397845,1778935841000,-150.0,0.00014806,2]
[422397847,1778935841000,-350.0,0.00014825,2]
[422397846,1778935841000,-320.0,0.00014821,2]
[422397844,1778935841000,-500.0,0.00014805,2]
[422397853,1778935841000,-10000.0,0.0001485,2]
[422397916,1778935842000,-500.0,0.00014999,2]
[422397926,1778935842000,-500.0,0.00014999,2]
[422397919,1778935842000,-500.0,0.00014999,2]
[422397920,1778935842000,-500.0,0.00014999,2]
[422397917,1778935842000,-500.0,0.00014999,2]
[422397915,1778935842000,-500.0,0.00014999,2]
[422397910,1778935842000,-500.0,0.00014996,2]
[422397921,1778935842000,-455.90856275,0.00014999,2]
[422397909,1778935842000,-500.0,0.00014994,2]
[422397918,1778935842000,-500.0,0.00014999,2]
[422397923,1778935842000,-500.0,0.00014999,2]
[422397935,1778935842000,-500.0,0.00014999,2]
[422397925,1778935842000,-434.68248138,0.00014999,2]
[422397928,1778935842000,-500.0,0.00014999,2]
[422397929,1778935842000,-500.0,0.00014999,2]
[422397927,1778935842000,-500.0,0.00014999,2]
[422397930,1778935842000,-500.0,0.00014999,2]
[422397937,1778935842000,-500.0,0.00014999,2]
[422397934,1778935842000,-500.0,0.00014999,2]
[422397931,1778935842000,-500.0,0.00014999,2]
[422397936,1778935842000,-500.0,0.00014999,2]
[422397911,1778935842000,-500.0,0.00014996,2]
[422397922,1778935842000,-284.15978878,0.00014999,2]
[422397907,1778935842000,-500.0,0.00014994,2]
[422397893,1778935842000,-151.0,0.00014959,2]
[422397906,1778935842000,-151.0,0.00014992,2]
[422397888,1778935842000,-150.224,0.00014959,2]
[422397887,1778935842000,-174.0,0.00014959,2]
[422397890,1778935842000,-165.938,0.00014959,2]
[422397889,1778935842000,-192.979,0.00014959,2]
[422397892,1778935842000,-150.974,0.00014959,2]
[422397891,1778935842000,-250.0,0.00014959,2]
[422397902,1778935842000,-150.0,0.00014986,2]
[422397894,1778935842000,-150.823,0.00014959,2]
[422397895,1778935842000,-265.29322813,0.00014969,2]
[422397933,1778935842000,-500.0,0.00014999,2]
[422397908,1778935842000,-500.0,0.00014994,2]
[422397896,1778935842000,-400.0,0.0001497,2]
[422397898,1778935842000,-601.50431683,0.0001497,2]
[422397901,1778935842000,-150.00000001,0.00014986,2]
[422397899,1778935842000,-151.89021174,0.00014986,2]
[422397897,1778935842000,-400.0,0.0001497,2]
[422397904,1778935842000,-230.71482246,0.00014986,2]
[422397913,1778935842000,-151.0,0.00014997,2]
[422397914,1778935842000,-150.0,0.00014999,2]
[422397912,1778935842000,-500.0,0.00014996,2]
[422397903,1778935842000,-150.0,0.00014986,2]
[422397905,1778935842000,-150.0,0.0001499,2]
[422397900,1778935842000,-151.3380736,0.00014986,2]
[422397932,1778935842000,-500.0,0.00014999,2]
[422397924,1778935842000,-500.0,0.00014999,2]
[422397940,1778935842000,-500.0,0.00014999,2]
[422397967,1778935842000,-500.0,0.00014999,2]
[422397968,1778935842000,-500.0,0.00014999,2]
[422397966,1778935842000,-500.0,0.00014999,2]
[422397969,1778935842000,-500.0,0.00014999,2]
[422397972,1778935842000,-500.0,0.00014999,2]
[422397970,1778935842000,-500.0,0.00014999,2]
[422397973,1778935842000,-500.0,0.00014999,2]
[422397975,1778935842000,-151.0,0.00014999,2]
[422397971,1778935842000,-500.0,0.00014999,2]
[422397977,1778935842000,-500.0,0.00014999,2]
[422397965,1778935842000,-500.0,0.00014999,2]
[422397987,1778935842000,-222343.40256087,0.00015,2]
[422397978,1778935842000,-222.380445,0.00014999,2]
[422397981,1778935842000,-222.380445,0.00014999,2]
[422397982,1778935842000,-300.0,0.00014999,2]
[422397985,1778935842000,-300.0,0.00014999,2]
[422397983,1778935842000,-300.0,0.00014999,2]
[422397979,1778935842000,-222.380445,0.00014999,2]
[422397980,1778935842000,-222.380445,0.00014999,2]
[422397986,1778935842000,-311.98948368,0.00015,2]
[422397984,1778935842000,-300.0,0.00014999,2]
[422397988,1778935842000,-151.0,0.00014999,2]
[422397976,1778935842000,-500.0,0.00014999,2]
[422397959,1778935842000,-500.0,0.00014999,13]
[422397974,1778935842000,-531.13887723,0.00014999,2]
[422397960,1778935842000,-500.0,0.00014999,14]
[422397948,1778935842000,-500.0,0.00014999,3]
[422397941,1778935842000,-500.0,0.00014999,2]
[422397939,1778935842000,-500.0,0.00014999,2]
[422397942,1778935842000,-500.0,0.00014999,2]
[422397943,1778935842000,-164.37893862,0.00014999,2]
[422397949,1778935842000,-500.0,0.00014999,4]
[422397946,1778935842000,-639.98009813,0.00014999,2]
[422397944,1778935842000,-500.0,0.00014999,2]
[422397961,1778935842000,-463.38310309,0.00014999,15]
[422397945,1778935842000,-500.0,0.00014999,2]
[422397950,1778935842000,-500.0,0.00014999,5]
[422397947,1778935842000,-500.0,0.00014999,2]
[422397951,1778935842000,-500.0,0.00014999,6]
[422397955,1778935842000,-500.0,0.00014999,10]
[422397952,1778935842000,-500.0,0.00014999,7]
[422397953,1778935842000,-500.0,0.00014999,8]
[422397954,1778935842000,-500.0,0.00014999,9]
[422397956,1778935842000,-500.0,0.00014999,11]
[422397964,1778935842000,-500.0,0.00014999,2]